fUSD/lending_fUSD_20250414
["ID","MTS","AMOUNT","RATE_DAILY","PERIOD"]
[357978189,1744640542089,-500.0,0.00017987,2]
[357978190,1744640542113,-500.0,0.00017987,2]
[357978191,1744640542139,-500.0,0.00017987,2]
[357978192,1744640542165,-500.0,0.00017987,2]
[357978193,1744640542188,-500.0,0.00017987,2]
[357978194,1744640542211,-500.0,0.00017987,2]
[357978195,1744640542234,-500.0,0.00017987,2]
[357978196,1744640542256,-500.0,0.00017987,2]
[357978197,1744640542280,-500.0,0.00017987,2]
[357978198,1744640542305,-650.0,0.00017987,2]
[357978199,1744640542329,-500.0,0.00017987,2]
[357978200,1744640542352,-500.0,0.00017987,2]
[357978201,1744640542376,-500.0,0.00017987,2]
[357978202,1744640542402,-500.0,0.00017987,2]
[357978203,1744640542427,-500.0,0.00017987,2]
[357978204,1744640542452,-500.0,0.00017987,2]
[357978205,1744640542476,-500.0,0.00017987,2]
[357978206,1744640542500,-500.0,0.00017987,2]
[357978207,1744640542526,-500.0,0.00017987,2]
[357978208,1744640542553,-500.0,0.00017987,2]
[357978209,1744640542578,-500.0,0.00017987,2]
[357978210,1744640542599,-18419.3542847,0.00017988,2]
[357978211,1744640542621,-14415.3195383,0.00017988,2]
[357978212,1744640542644,-416.8225101,0.00017989,2]
[357978213,1744640542666,-274.26340679,0.0001799,2]
[357978214,1744640542688,-274.26340679,0.0001799,2]
[357978215,1744640542709,-274.26340679,0.0001799,2]
[357978216,1744640542732,-300.0,0.00017999,2]
[357978217,1744640542759,-6801345.71490198,0.00018,2]
[357978218,1744640604263,-195860.1107801,0.00017987,2]
[357978219,1744640604295,-500.0,0.00017999,2]
[357978220,1744640604325,-500.0,0.00017999,2]
[357978221,1744640604356,-500.0,0.00017999,2]
[357978222,1744640604386,-500.0,0.00017999,2]
[357978223,1744640604417,-500.0,0.00017999,2]
[357978224,1744640604448,-523.05179412,0.00017999,2]
[357978225,1744640604479,-500.0,0.00017999,2]
[357978226,1744640604501,-195860.1107801,0.00018,2]
[357978227,1744640604521,-500.0,0.00018,2]
[357978228,1744640604534,-500.0,0.00018,2]
[357978229,1744640604546,-500.0,0.00018,2]
[357978230,1744640604566,-500.0,0.00018,2]
[357978231,1744640604586,-500.0,0.00018,2]
[357978232,1744640604607,-523.05179412,0.00018,2]
[357978233,1744640604623,-500.0,0.00018,2]
[357978234,1744640604639,-1078053.97307988,0.00018,2]
[357978235,1744640604653,-900.0,0.00018,2]
[357978236,1744640604663,-200.0,0.00018,2]
[357978237,1744640604673,-250.0,0.00018,2]
[357978238,1744640604683,-250.0,0.00018,2]
[357978239,1744640604692,-250.0,0.00018,2]
[357978240,1744640604702,-1141.70884429,0.00018,2]
[357978241,1744640604712,-599.55,0.00018037,2]
[357978242,1744640604722,-170.95,0.00018054,2]
[357978243,1744640604732,-490.47,0.00018108,2]
[357978244,1744640604742,-490.47,0.00018113,2]
[357978245,1744640604752,-490.47,0.00018118,2]
[357978246,1744640604762,-490.47,0.00018123,2]
[357978247,1744640604771,-490.47,0.00018128,2]
[357978248,1744640604781,-490.47,0.00018132,2]
[357978249,1744640604791,-490.47,0.00018137,2]
[357978250,1744640604801,-490.47,0.00018142,2]
[357978251,1744640604810,-490.47,0.00018147,2]
[357978252,1744640604821,-490.47,0.00018151,2]
[357978253,1744640604833,-490.47,0.00018156,2]
[357978254,1744640604842,-490.47,0.00018161,2]
[357978255,1744640604852,-490.47,0.00018166,2]
[357978256,1744640604863,-490.47,0.0001817,2]
[357978257,1744640604872,-490.47,0.00018175,2]
[357978258,1744640604882,-490.47,0.0001818,2]
[357978259,1744640604891,-200.0,0.0001818,2]
[357978260,1744640604903,-490.47,0.00018185,2]
[357978261,1744640604913,-490.47,0.00018189,2]
[357978262,1744640604923,-490.47,0.00018194,2]
[357978263,1744640604932,-490.47,0.00018199,2]
[357978264,1744640604942,-207.98,0.000182,2]
[357978265,1744640604951,-307.65,0.000182,2]
[357978266,1744640604961,-336.07,0.000182,2]
[357978267,1744640604970,-538.26,0.000182,2]
[357978268,1744640604980,-349.09,0.000182,2]
[357978269,1744640604991,-531.52,0.00018356,2]
[357978270,1744640605001,-200.0,0.00018362,2]
[357978271,1744640605011,-300.0,0.00018501,2]
[357978272,1744640605021,-200.0,0.00018545,2]
[357978273,1744640605031,-150.0,0.00018545,2]
[357978274,1744640605041,-2250.0,0.00018567,2]
[357978275,1744640605050,-200.0,0.000186,2]
[357978276,1744640605060,-200.0,0.00018731,2]
[357978277,1744640605069,-526.55003253,0.00018789,2]
[357978278,1744640605079,-1000.0,0.000188,2]
[357978279,1744640605089,-1000.0,0.000189,2]
[357978280,1744640605098,-151.0,0.00018901,2]
[357978281,1744640605110,-312.63,0.0001899,2]
[357978282,1744640605120,-312.63,0.0001899,2]
[357978283,1744640605130,-312.63,0.0001899,2]
[357978284,1744640605140,-312.63,0.0001899,2]
[357978285,1744640605150,-312.63,0.0001899,2]
[357978286,1744640605160,-312.63,0.0001899,2]
[357978287,1744640605170,-312.63,0.0001899,2]
[357978288,1744640605180,-312.63,0.0001899,2]
[357978289,1744640605190,-312.63,0.0001899,2]
[357978290,1744640605200,-312.63,0.0001899,2]
[357978291,1744640605358,-312.63,0.0001899,2]
[357978292,1744640605368,-312.63,0.0001899,2]
[357978293,1744640605376,-312.63,0.0001899,2]
[357978294,1744640605386,-312.63,0.0001899,2]
[357978295,1744640605395,-312.63,0.0001899,2]
[357978296,1744640605404,-312.63,0.0001899,2]
[357978297,1744640605413,-312.63,0.0001899,2]
[357978298,1744640605422,-312.63,0.0001899,2]
[357978299,1744640605431,-312.63,0.0001899,2]
[357978300,1744640605440,-312.63,0.0001899,2]
[357978301,1744640605449,-312.63,0.0001899,2]
[357978302,1744640605458,-312.63,0.0001899,2]
[357978303,1744640605467,-312.63,0.0001899,2]
[357978304,1744640605476,-312.63,0.0001899,2]
[357978305,1744640605486,-312.63,0.0001899,2]
[357978306,1744640605494,-312.63,0.0001899,2]
[357978307,1744640605504,-312.63,0.0001899,2]
[357978308,1744640605514,-312.63,0.0001899,2]
[357978309,1744640605523,-312.63,0.0001899,2]
[357978310,1744640605532,-312.63,0.0001899,2]
[357978311,1744640605541,-312.63,0.0001899,2]
[357978312,1744640605550,-312.63,0.0001899,2]
[357978313,1744640605559,-312.63,0.0001899,2]
[357978314,1744640605568,-312.63,0.0001899,2]
[357978315,1744640605578,-312.63,0.0001899,2]
[357978316,1744640605587,-312.63,0.0001899,2]
[357978317,1744640605597,-312.63,0.0001899,2]
[357978318,1744640605609,-312.63,0.0001899,2]
[357978319,1744640605619,-312.63,0.0001899,2]
[357978320,1744640605628,-312.63,0.0001899,2]
[357978321,1744640605638,-312.63,0.0001899,2]
[357978322,1744640605648,-312.63,0.0001899,2]
[357978323,1744640605657,-312.63,0.0001899,2]
[357978324,1744640605667,-312.63,0.0001899,2]
[357978325,1744640605677,-312.63,0.0001899,2]
[357978326,1744640605686,-312.63,0.0001899,2]
[357978327,1744640605696,-312.63,0.0001899,2]
[357978328,1744640605706,-312.63,0.0001899,2]
[357978329,1744640605715,-312.63,0.0001899,2]
[357978330,1744640605725,-312.63,0.0001899,2]
[357978331,1744640605734,-312.63,0.0001899,2]
[357978332,1744640605744,-312.63,0.0001899,2]
[357978333,1744640605754,-312.63,0.0001899,2]
[357978334,1744640605763,-312.63,0.0001899,2]
[357978335,1744640605773,-312.63,0.0001899,2]
[357978336,1744640605782,-312.63,0.0001899,2]
[357978337,1744640605792,-312.63,0.0001899,2]
[357978338,1744640605802,-312.63,0.0001899,2]
[357978339,1744640605812,-312.63,0.0001899,2]
[357978340,1744640605824,-312.63,0.0001899,2]
[357978341,1744640605836,-312.63,0.0001899,2]
[357978342,1744640605846,-312.63,0.0001899,2]
[357978343,1744640605857,-312.63,0.0001899,2]
[357978344,1744640605868,-312.63,0.0001899,2]
[357978345,1744640605878,-312.63,0.0001899,2]
[357978346,1744640605889,-312.63,0.0001899,2]
[357978347,1744640605899,-312.63,0.0001899,2]
[357978348,1744640605910,-312.63,0.0001899,2]
[357978349,1744640605921,-312.63,0.0001899,2]
[357978350,1744640605931,-312.63,0.0001899,2]
[357978351,1744640605940,-312.63,0.0001899,2]
[357978352,1744640605951,-312.63,0.0001899,2]
[357978353,1744640605961,-312.63,0.0001899,2]
[357978354,1744640605971,-312.63,0.0001899,2]
[357978355,1744640605980,-312.63,0.0001899,2]
[357978356,1744640605991,-312.63,0.0001899,2]
[357978357,1744640606001,-312.63,0.0001899,2]
[357978358,1744640606010,-312.63,0.0001899,2]
[357978359,1744640606020,-312.63,0.0001899,2]
[357978360,1744640606030,-312.63,0.0001899,2]
[357978361,1744640606039,-312.63,0.0001899,2]
[357978362,1744640606049,-312.63,0.0001899,2]
[357978363,1744640606058,-312.63,0.0001899,2]
[357978364,1744640606068,-312.63,0.0001899,2]
[357978365,1744640606078,-312.63,0.0001899,2]
[357978366,1744640606088,-312.63,0.0001899,2]
[357978367,1744640606098,-312.63,0.0001899,2]
[357978368,1744640606110,-312.63,0.0001899,2]
[357978369,1744640606120,-312.63,0.0001899,2]
[357978370,1744640606129,-312.63,0.0001899,2]
[357978371,1744640606139,-312.63,0.0001899,2]
[357978372,1744640606149,-312.63,0.0001899,2]
[357978373,1744640606159,-312.63,0.0001899,2]
[357978374,1744640606168,-312.63,0.0001899,2]
[357978375,1744640606178,-312.63,0.0001899,2]
[357978376,1744640606187,-312.63,0.0001899,2]
[357978377,1744640606199,-312.63,0.0001899,2]
[357978378,1744640606208,-312.63,0.0001899,2]
[357978379,1744640606218,-312.63,0.0001899,2]
[357978380,1744640606228,-7875.04,0.00019,2]
[357978381,1744640606237,-7875.04,0.00019,2]
[357978382,1744640606247,-7875.04,0.00019,2]
[357978383,1744640606256,-6264.48289486,0.00019,2]
[357978384,1744640710915,601.8499547,0.000154,2]
[357978385,1744640728478,1134.21310478,0.00011,2]
[357978386,1744640728502,1655.84862849,0.00011,2]
[357978387,1744640737024,5081.11506514,9e-05,2]
[357978388,1744640754089,-178.02312454,0.00017856,2]
[357978389,1744640755753,3263.03630637,6.94e-05,2]
[357978390,1744640755776,8189.321848,6.94e-05,2]
[357978391,1744640763386,1810.678152,8e-05,2]
[357978392,1744640763411,10000.0,8e-05,2]
[357978393,1744640763435,10000.0,8e-05,2]
[357978394,1744640763459,940.66353893,8e-05,2]
[357978395,1744640768151,4813.41646284,8e-05,2]
[357978396,1744640775616,181.73,0.000146,2]
[357978397,1744640815271,1478.79,0.00016297,2]
[357978398,1744640827447,1239.0445,0.000153,2]
[357978399,1744640831515,1346.35549823,0.00015,2]
[357978400,1744640831538,223.12413623,0.00015,2]
[357978401,1744640835149,2047.3839566,0.00015,2]
[357978402,1744640838112,-21.97687546,0.00017856,2]
[357978403,1744640838138,-253.50926354,0.000179,2]
[357978404,1744640838185,-106.29489225,0.000179,2]
[357978405,1744640838210,-7771.9374487,0.00017987,2]
[357978406,1744640838235,-300.0,0.00017999,2]
[357978407,1744640838264,-300.0,0.00017999,2]
[357978408,1744640838288,-183.07776595,0.00017999,2]
[357978409,1744640838314,-391.45019935,0.00017999,2]
[357978410,1744640838340,-13142.62674074,0.00018,2]
[357978412,1744640841650,5150.46331775,0.0001305,2]
[357978413,1744640842127,-1447.4918667,0.00018,2]
[357978414,1744640874903,2579.02858942,0.00013,2]
[357978415,1744640874928,1686.37949609,0.00013,2]
[357978416,1744640878181,8313.62050391,0.0001,2]
[357978417,1744640878205,10000.0,0.0001,2]
[357978418,1744640878226,10000.0,0.0001,2]
[357978419,1744640878248,10000.0,0.0001,2]
[357978420,1744640878271,969.11241015,0.0001,2]
[357978421,1744640888747,1193.99534858,9.5e-05,2]
[357978423,1744640896886,7836.89224127,0.0001439,2]
[357978424,1744640896915,2094.12308012,0.0001439,2]
[357978425,1744640907533,1862.64499334,0.0001,2]
[357978426,1744640915029,6043.23192654,9.828e-05,2]
[357978427,1744640915052,4879.3780192,9.828e-05,2]
[357978428,1744640918513,3629.40085698,0.000149,2]
[357978429,1744640920235,1491.22112382,0.0001,2]
[357978430,1744640920258,1146.17367418,0.0001,2]
[357978431,1744640928013,6059.11499783,0.00013368,2]
[357978443,1744640956087,-175.47194384,0.000179,2]
[357978444,1744640956109,-33937.38823616,0.000179,2]
[357978458,1744641031876,-1366.88955202,0.00017882,2]
[357978460,1744641031887,-300.0,0.00017899,2]
[357978462,1744641031899,-4302.99293433,0.000179,2]
[357978463,1744641031916,-6994.2634421,0.000179,2]
[357978464,1744641031928,-350.0,0.000179,2]
[357978465,1744641031941,-1284.89999991,0.000179,2]
[357978466,1744641032015,-2977.46486616,0.000179,2]
[357978467,1744641032030,-1496.47990283,0.000179,2]
[357978468,1744641032049,-636.84170514,0.000179,2]
[357978469,1744641032092,-372.96495943,0.000179,2]
[357978470,1744641032105,-411.64114999,0.000179,2]
[357978471,1744641032119,-3298.75320503,0.000179,2]
[357978472,1744641032167,-805.851417,0.000179,2]
[357978513,1744641038238,-8501.3,0.000179,2]
[357978515,1744641038315,-2515.11736554,0.000179,2]
[357978516,1744641038399,-160.83242941,0.000179,2]
[357978517,1744641038412,-2050.72168283,0.000179,2]
[357978518,1744641038423,-619.24477862,0.000179,2]
[357978552,1744641040302,-30.60957116,0.000179,2]
[357978553,1744641040331,-342.94733065,0.000179,2]
[357978554,1744641040347,-2157.75606085,0.000179,2]
[357978555,1744641040360,-916.04499999,0.000179,2]
[357978556,1744641040371,-534.88320319,0.000179,2]
[357978557,1744641040383,-6932.42299309,0.000179,2]
[357978558,1744641040405,-10383.96526999,0.000179,2]
[357978559,1744641040602,-27232.25778441,0.000179,2]
[357978560,1744641040616,-175.47194383,0.000179,2]
[357978561,1744641040627,-323.65,0.000179,2]
[357978562,1744641040638,-500.0,0.00017973,2]
[357978563,1744641040649,-1582136.07520669,0.00018,2]
[357978565,1744641040672,-84561.0,0.00018,2]
[357978568,1744641040699,-2540.73,0.00018,2]
[357978569,1744641040711,-2000.0,0.00018,2]
[357978578,1744641043831,-12999.56533886,0.00018,2]
[357978579,1744641043843,-37421.02705004,0.00018,2]
[357978580,1744641043858,-2800.53668364,0.00018,2]
[357978582,1744641044970,-745.91189246,0.00018,2]
[357978583,1744641044981,-3218.173501,0.00018,2]
[357978584,1744641045031,-0.00189865,0.00018,2]
[357978585,1744641045055,-1322.54584338,0.00018,2]
[357978586,1744641045089,-505795.99999991,0.00018,2]
[357978587,1744641045203,-0.35410222,0.00018,2]
[357978597,1744641046046,-5347.54144392,0.00018,2]
[357978598,1744641046234,-31894.37005235,0.00018,2]
[357978601,1744641046983,-0.19059873,0.00018,2]
[357978602,1744641083358,200.0,0.000173,6]
[357978603,1744641085490,500.0,0.000174,6]
[357978604,1744641087738,800.0,0.000175,6]
[357978605,1744641089846,1100.0,0.000176,6]
[357978606,1744641091955,1400.0,0.000177,6]
[357978607,1744641094063,200.0,0.000178,6]
[357978608,1744641096625,200.0,0.000179,6]
[357978609,1744641098322,200.0,0.000189,6]
[357978610,1744641321411,318.8916452,0.000265,120]
[357978611,1744641393414,1173.39,0.00017,2]
[357978612,1744641431181,187.0,0.000195,3]
[357978613,1744641451625,187.0,0.000175,2]
[357978614,1744641456584,187.0,0.000175,2]
[357978615,1744641471026,187.0,0.000195,3]
[357978616,1744641481797,648.89330009,0.00025,30]
[357978617,1744641521498,185.47,0.000175,2]
[357978618,1744641531854,-20000.0,0.00027,120]
[357978619,1744641531878,-500.35,0.0002715,30]
[357978620,1744641531909,-10000.0,0.00027397,30]
[357978621,1744641531937,-540.14,0.00027425,30]
[357978622,1744641531967,-200.0,0.00028,120]
[357978623,1744641531997,-4628.0319,0.000288,30]
[357978624,1744641532023,-3873.30432898,0.0002888,120]
[357978625,1744641532048,-150.0,0.00028952,120]
[357978626,1744641532073,-900.0,0.00029,30]
[357978627,1744641532100,-150.0,0.00029135,120]
[357978628,1744641532130,-150.0,0.00029476,120]
[357978629,1744641532156,-150.0,0.00029588,120]
[357978630,1744641532329,-150.0,0.00029619,120]
[357978631,1744641532356,-150.0,0.00029641,120]
[357978632,1744641532382,-150.0,0.00029642,120]
[357978633,1744641532408,-150.0,0.00029666,120]
[357978634,1744641532439,-2645.73,0.000298,31]
[357978635,1744641532470,-2645.73,0.000298,31]
[357978636,1744641532502,-2645.73,0.000298,31]
[357978637,1744641532533,-2645.73,0.000298,31]
[357978638,1744641532563,-2645.73,0.000298,31]
[357978639,1744641532593,-2645.73,0.000298,31]
[357978640,1744641532623,-2645.73,0.000298,31]
[357978641,1744641532655,-2645.73,0.000298,31]
[357978642,1744641532685,-2645.73,0.000298,31]
[357978643,1744641532715,-2645.73,0.000298,31]
[357978644,1744641532745,-2645.73,0.000298,31]
[357978645,1744641532774,-2645.73,0.000298,31]
[357978646,1744641532803,-2645.73,0.000298,31]
[357978647,1744641532831,-2645.73,0.000298,31]
[357978648,1744641532861,-2645.73,0.000298,31]
[357978649,1744641532891,-2645.73,0.000298,31]
[357978650,1744641532915,-76635.61521865,0.0002987,30]
[357978651,1744641532942,-150.0,0.00029874,120]
[357978652,1744641532970,-150.0,0.00029994,120]
[357978653,1744641532997,-900.0,0.0003,31]
[357978654,1744641533023,-12000.0,0.0003,60]
[357978655,1744641533048,-608.0,0.0003,30]
[357978656,1744641533076,-300.0,0.0003,120]
[357978657,1744641533103,-1517.54564435,0.0003,30]
[357978658,1744641533132,-20000.0,0.0003,120]
[357978659,1744641533158,-180.0,0.0003,120]
[357978660,1744641533184,-43284.47,0.0003,30]
[357978661,1744641533210,-222.99,0.0003,30]
[357978662,1744641533238,-150.0,0.00030397,120]
[357978663,1744641533266,-150.0,0.00030584,120]
[357978664,1744641533293,-548.0,0.00030613,30]
[357978665,1744641533319,-150.0,0.00030635,120]
[357978666,1744641533346,-150.0,0.00030636,120]
[357978667,1744641533379,-2645.73,0.000308,31]
[357978668,1744641533409,-2645.73,0.000308,31]
[357978669,1744641533441,-2645.73,0.000308,31]
[357978670,1744641533472,-2645.73,0.000308,31]
[357978671,1744641533507,-2645.73,0.000308,31]
[357978672,1744641533537,-2645.73,0.000308,31]
[357978673,1744641533565,-2645.73,0.000308,31]
[357978674,1744641533595,-2645.73,0.000308,31]
[357978675,1744641533625,-2645.73,0.000308,31]
[357978676,1744641533654,-2645.73,0.000308,31]
[357978677,1744641533683,-2645.73,0.000308,31]
[357978678,1744641533712,-2645.73,0.000308,31]
[357978679,1744641533741,-2645.73,0.000308,31]
[357978680,1744641533770,-2645.73,0.000308,31]
[357978681,1744641533799,-2645.73,0.000308,31]
[357978682,1744641533831,-2645.73,0.000308,31]
[357978683,1744641533860,-2645.73,0.000308,31]
[357978684,1744641533889,-2645.73,0.000308,31]
[357978685,1744641533920,-2645.73,0.000308,31]
[357978686,1744641533949,-2645.73,0.000308,31]
[357978687,1744641533979,-2645.73,0.000308,31]
[357978688,1744641534010,-2645.73,0.000308,31]
[357978689,1744641534039,-2645.73,0.000308,31]
[357978690,1744641534067,-2645.73,0.000308,31]
[357978691,1744641534094,-150.0,0.00030945,120]
[357978692,1744641534123,-900.0,0.00031,32]
[357978693,1744641534148,-218.90935937,0.0003118,30]
[357978694,1744641534299,-150.0,0.00031348,120]
[357978695,1744641534325,-35537.76838653,0.000314,30]
[357978696,1744641534351,-150.0,0.00031556,120]
[357978697,1744641534382,-2645.73,0.000317,31]
[357978698,1744641534413,-2645.73,0.000317,31]
[357978699,1744641534443,-2645.73,0.000317,31]
[357978700,1744641534472,-2645.73,0.000317,31]
[357978701,1744641534502,-2645.73,0.000317,31]
[357978702,1744641534531,-2645.73,0.000317,31]
[357978703,1744641534559,-2645.73,0.000317,31]
[357978704,1744641534589,-2645.73,0.000317,31]
[357978705,1744641534616,-2645.73,0.000317,31]
[357978706,1744641534644,-2645.73,0.000317,31]
[357978707,1744641534672,-2645.73,0.000317,31]
[357978708,1744641534701,-2645.73,0.000317,31]
[357978709,1744641534731,-2645.73,0.000317,31]
[357978710,1744641534760,-2645.73,0.000317,31]
[357978711,1744641534788,-2645.73,0.000317,31]
[357978712,1744641534819,-2645.73,0.000317,31]
[357978713,1744641534849,-2645.73,0.000317,31]
[357978714,1744641534880,-2645.73,0.000317,31]
[357978715,1744641534914,-2645.73,0.000317,31]
[357978716,1744641534946,-2645.73,0.000317,31]
[357978717,1744641534979,-2645.73,0.000317,31]
[357978718,1744641535012,-2645.73,0.000317,31]
[357978719,1744641535045,-2645.73,0.000317,31]
[357978720,1744641535078,-2645.73,0.000317,31]
[357978721,1744641535110,-2979.44194094,0.000318,30]
[357978722,1744641535137,-900.0,0.00032,33]
[357978723,1744641535164,-300.0,0.00032,120]
[357978724,1744641535193,-341.09,0.00032,120]
[357978725,1744641535220,-150.0,0.00032035,120]
[357978726,1744641535246,-150.0,0.00032056,120]
[357978727,1744641535272,-540.14,0.00032315,30]
[357978728,1744641535298,-150.0,0.00032318,120]
[357978729,1744641535325,-150.0,0.00032428,120]
[357978730,1744641535371,-150.0,0.00032448,120]
[357978731,1744641535418,-282.902,0.000325,120]
[357978732,1744641535459,-282.903,0.000325,120]
[357978733,1744641535504,-282.902,0.000325,120]
[357978734,1744641535547,-282.903,0.000325,120]
[357978735,1744641535590,-282.902,0.000325,120]
[357978736,1744641535634,-2645.73,0.000326,31]
[357978737,1744641535677,-2645.73,0.000326,31]
[357978738,1744641535720,-2645.73,0.000326,31]
[357978739,1744641535767,-2645.73,0.000326,31]
[357978740,1744641535811,-2645.73,0.000326,31]
[357978741,1744641535854,-2645.73,0.000326,31]
[357978742,1744641535897,-2645.73,0.000326,31]
[357978743,1744641535939,-2645.73,0.000326,31]
[357978744,1744641535985,-2645.73,0.000326,31]
[357978745,1744641536028,-2645.73,0.000326,31]
[357978746,1744641536071,-2645.73,0.000326,31]
[357978747,1744641536117,-2645.73,0.000326,31]
[357978748,1744641536163,-2645.73,0.000326,31]
[357978749,1744641536209,-2645.73,0.000326,31]
[357978750,1744641536256,-2645.73,0.000326,31]
[357978751,1744641536301,-2645.73,0.000326,31]
[357978752,1744641536344,-2645.73,0.000326,31]
[357978753,1744641536387,-2645.73,0.000326,31]
[357978754,1744641536432,-2645.73,0.000326,31]
[357978755,1744641536475,-2645.73,0.000326,31]
[357978756,1744641536518,-2645.73,0.000326,31]
[357978757,1744641536563,-2645.73,0.000326,31]
[357978758,1744641536605,-2645.73,0.000326,31]
[357978759,1744641536648,-2645.73,0.000326,31]
[357978760,1744641536686,-150.0,0.00032823,120]
[357978761,1744641536736,-300.0,0.00032877,30]
[357978762,1744641536772,-1500.0,0.00032877,120]
[357978763,1744641536810,-150.0,0.00032931,120]
[357978764,1744641537064,-2025.12,0.00033,30]
[357978765,1744641537092,-900.0,0.00033,34]
[357978766,1744641537122,-181.0,0.00033,120]
[357978767,1744641537148,-240.0,0.00033,30]
[357978768,1744641537174,-20000.0,0.00033,120]
[357978769,1744641537202,-150.0,0.0003303,120]
[357978770,1744641537234,-2645.73,0.000335,31]
[357978771,1744641537265,-2645.73,0.000335,31]
[357978772,1744641537293,-2645.73,0.000335,31]
[357978773,1744641537322,-2645.73,0.000335,31]
[357978774,1744641537352,-2645.73,0.000335,31]
[357978775,1744641537382,-2645.73,0.000335,31]
[357978776,1744641537412,-2645.73,0.000335,31]
[357978777,1744641537442,-2645.73,0.000335,31]
[357978778,1744641537472,-2645.73,0.000335,31]
[357978779,1744641537502,-2645.73,0.000335,31]
[357978780,1744641537534,-2645.73,0.000335,31]
[357978781,1744641537563,-2645.73,0.000335,31]
[357978782,1744641537588,-443.0,0.00033674,30]
[357978783,1744641537614,-500.0,0.00033768,60]
[357978784,1744641537639,-900.0,0.00033768,60]
[357978785,1744641537664,-514.635539,0.00033999,120]
[357978786,1744641537689,-900.0,0.00034,35]
[357978787,1744641537716,-300.0,0.00034,120]
[357978788,1744641537742,-325.99,0.000342,120]
[357978789,1744641537768,-150.0,0.00034286,120]
[357978790,1744641537795,-347.73,0.000348,120]
[357978791,1744641537819,-500.0,0.00034864,60]
[357978792,1744641537844,-900.0,0.00034864,60]
[357978793,1744641537870,-150.0,0.00034887,120]
[357978794,1744641537897,-150.0,0.00034919,120]
[357978795,1744641537921,-150.0,0.00034948,120]
[357978796,1744641537946,-21834.97504555,0.00035,120]
[357978797,1744641537970,-346.77447074,0.00035,120]
[357978798,1744641537995,-1504.84922231,0.00035,120]
[357978799,1744641538021,-593674.57,0.00035,30]
[357978800,1744641538046,-203.1946342,0.00035,30]
[357978801,1744641538071,-900.0,0.00035,36]
[357978802,1744641538096,-664004.68304159,0.0003511,30]
[357978803,1744641538125,-150.0,0.00035305,120]
[357978804,1744641538150,-150.0,0.00035403,120]
[357978805,1744641538176,-150.0,0.00035521,120]
[357978806,1744641538202,-2000.0,0.00035616,120]
[357978807,1744641538226,-2000.0,0.00035616,120]
[357978808,1744641538251,-2000.0,0.00035616,120]
[357978809,1744641538275,-2000.0,0.00035616,120]
[357978810,1744641538299,-2000.0,0.00035616,120]
[357978811,1744641538324,-2000.0,0.00035616,120]
[357978812,1744641538348,-2000.0,0.00035616,120]
[357978813,1744641538372,-2000.0,0.00035616,120]